bitfinex/quotes_SOLUSD_20250602
["timestamp","ask_amount","ask_price","bid_price","bid_amount"]
[1748872626540,82.3252515,152.41,152.37,19.0425555]
[1748872626838,82.3252515,152.41,152.37,35.44998478]
[1748872627010,38.7452515,152.41,152.37,35.44998478]
[1748872627518,38.7452515,152.42,152.37,74.19523628]
[1748872627712,82.2852515,152.42,152.37,74.19523628]
[1748872628434,38.7452515,152.42,152.37,74.19523628]
[1748872629556,43.5,152.43,152.37,74.19523628]
[1748872629722,38.7452515,152.42,152.37,74.19523628]
[1748872630025,38.7452515,152.43,152.38,38.7452515]
[1748872630223,8.16743542,152.49,152.4,64.7452515]
[1748872630463,8.16743542,152.49,152.41,6.56113861]
[1748872630464,38.7452515,152.43,152.41,6.56113861]
[1748872630625,50.05836463,152.48,152.42,12.48]
[1748872630626,43.5,152.44,152.42,12.48]
[1748872630825,38.7452515,152.43,152.42,12.48]
[1748872631354,43.5,152.46,152.42,12.48]
[1748872631556,1.6093,152.49,152.42,12.48]
[1748872631963,38.7452515,152.48,152.43,38.7452515]
[1748872632166,43.5,152.49,152.43,38.7452515]
[1748872632322,38.7452515,152.45,152.43,6.56038837]
[1748872632522,38.7452515,152.45,152.44,12.48]
[1748872632727,43.5,152.49,152.44,12.48]
[1748872632923,38.7452515,152.46,152.44,12.48]
[1748872633160,38.7452515,152.46,152.41,81.14789556]
[1748872633161,38.7452515,152.45,152.42,6.56074699]
[1748872633353,43.5,152.46,152.43,12.48]
[1748872633551,38.7452515,152.45,152.43,12.48]
[1748872633851,38.7452515,152.44,152.43,12.48]
[1748872634236,38.7452515,152.45,152.43,12.48]
[1748872634441,38.7452515,152.44,152.43,12.48]
[1748872634641,43.5,152.46,152.43,19.04038837]
[1748872634960,82.2452515,152.46,152.43,19.04038837]
[1748872635170,43.5,152.46,152.43,74.1866108]
[1748872635343,82.2452515,152.46,152.43,35.4413593]
[1748872635540,6.55711875,152.51,152.43,35.4413593]
[1748872635866,38.7452515,152.46,152.43,19.04038837]
[1748872636031,38.7452515,152.44,152.43,19.04033117]
[1748872636230,38.7452515,152.45,152.43,19.04033117]
[1748872636443,38.7452515,152.44,152.43,12.48]
[1748872637371,38.7452515,152.44,152.43,19.04038837]
[1748872637539,38.7452515,152.44,152.43,12.48]
[1748872638045,88.8053051,152.44,152.42,12.48]
[1748872638245,38.7452515,152.43,152.42,12.48]
[1748872638453,45.30563987,152.43,152.42,12.48]
[1748872638969,39.2452515,152.43,152.42,12.48]
[1748872639555,45.80563987,152.43,152.36,6.56328998]
[1748872639842,77.490503,152.37,152.36,12.48]
[1748872640059,129.188103,152.37,152.33,6.56469506]
[1748872640269,38.7452515,152.34,152.32,94.52]
[1748872640460,38.7452515,152.33,152.32,101.08497879]
[1748872640661,38.7452515,152.34,152.32,101.08497879]
[1748872640868,38.7452515,152.33,152.32,101.08497879]
[1748872641943,38.7452515,152.33,152.32,94.52]
[1748872642370,38.7452515,152.33,152.27,6.56715133]
[1748872642575,6.56512605,152.32,152.28,12.48]
[1748872642875,6.56512605,152.32,152.23,6.56900742]
[1748872642876,77.490503,152.29,152.27,12.48]
[1748872643171,82.2452515,152.28,152.27,12.48]
[1748872644476,38.7452515,152.28,152.27,12.48]
[1748872644672,38.7452515,152.28,152.27,19.0472818]
[1748872645849,38.7452515,152.29,152.27,19.0472818]
[1748872646050,82.2452515,152.3,152.27,35.4654863]
[1748872646257,38.7452515,152.31,152.27,35.4654863]
[1748872646473,1.6204,152.36,152.27,35.4654863]
[1748872646474,43.5,152.32,152.27,35.4654863]
[1748872646681,1.6204,152.36,152.3,38.7452515]
[1748872646876,38.7452515,152.35,152.3,38.7452515]
[1748872647052,82.2452515,152.35,152.3,38.7452515]
[1748872647248,1.6332,152.4,152.32,38.7452515]
[1748872647462,38.7452515,152.35,152.33,12.48]
[1748872647718,84.2452515,152.35,152.33,12.48]
[1748872648190,43.5,152.35,152.33,12.48]
[1748872648877,82.2452515,152.35,152.33,12.48]
[1748872649056,38.7452515,152.35,152.33,19.04468974]
[1748872649252,10.29887674,152.4,152.33,19.04468974]
[1748872649683,38.7452515,152.36,152.33,19.04468974]
[1748872649989,43.5,152.39,152.33,19.04468974]
[1748872649990,38.7452515,152.35,152.33,19.04468974]
[1748872650367,38.7452515,152.35,152.29,26.0]
[1748872650568,38.7452515,152.35,152.28,6.4057]
[1748872650569,38.7452515,152.31,152.3,19.04598818]
[1748872650884,43.5,152.32,152.3,19.04598818]
[1748872651801,38.7452515,152.35,152.3,74.20621013]
[1748872651983,82.2452515,152.35,152.3,74.20621013]
[1748872652183,38.7452515,152.34,152.3,35.46095863]
[1748872652497,82.2452515,152.35,152.3,74.20621013]
[1748872652796,38.7452515,152.34,152.3,35.46095863]
[1748872653596,43.5,152.35,152.3,35.46095863]
[1748872653597,38.7452515,152.32,152.3,19.04598818]
[1748872653801,38.7452515,152.33,152.3,19.04598818]
[1748872653979,38.7452515,152.34,152.3,19.04598818]
[1748872654174,43.5,152.35,152.3,74.20621013]
[1748872654379,82.2452515,152.35,152.32,6.56512605]
[1748872654893,38.7452515,152.33,152.3,12.48]
[1748872655093,38.7452515,152.32,152.3,19.04584485]
[1748872655499,38.7452515,152.31,152.3,12.48]
[1748872655691,38.7452515,152.31,152.3,19.04598818]
[1748872655882,38.7452515,152.31,152.3,12.38]
[1748872656284,82.2452515,152.32,152.3,12.38]
[1748872656603,43.5,152.32,152.31,6.56555708]
[1748872657375,82.2452515,152.34,152.31,6.56555708]
[1748872657575,43.5,152.34,152.31,6.56555708]
[1748872657895,82.2452515,152.35,152.31,6.56555708]
[1748872658375,43.5,152.35,152.31,45.31080858]
[1748872658582,82.2452515,152.36,152.31,45.31080858]
[1748872658782,38.7452515,152.35,152.31,6.56555708]
[1748872659085,43.5,152.36,152.3,67.53955094]
[1748872659086,38.7452515,152.34,152.3,18.94581521]
[1748872659288,38.7452515,152.35,152.3,74.10603716]
[1748872659800,38.7452515,152.34,152.3,18.94581521]
[1748872660000,38.7452515,152.33,152.3,18.94581521]
[1748872660398,82.2452515,152.34,152.3,18.94581521]
[1748872660613,38.7452515,152.33,152.3,18.94581521]
[1748872660778,38.7452515,152.32,152.3,12.38]
[1748872661104,82.2452515,152.31,152.3,12.38]
[1748872661279,38.7452515,152.32,152.3,18.94598818]
[1748872661482,82.2452515,152.33,152.3,18.94598818]
[1748872661788,38.7452515,152.31,152.3,12.38]
[1748872661976,43.5,152.33,152.3,12.38]
[1748872662180,38.7452515,152.31,152.3,12.38]
[1748872662888,43.5,152.33,152.3,12.38]
[1748872663097,38.7452515,152.31,152.3,12.38]
[1748872664105,51.5243,152.39,152.3,12.38]
[1748872664106,17.93012,152.39,152.3,12.38]
[1748872664410,38.7452515,152.36,152.31,38.7452515]
[1748872664595,1.5243,152.39,152.33,38.7452515]
[1748872664805,6.3589,152.41,152.33,38.7452515]
[1748872664806,38.7452515,152.38,152.33,38.7452515]
[1748872665119,82.2452515,152.38,152.33,38.7452515]
[1748872665481,43.5,152.38,152.34,38.7452515]
[1748872665682,82.2452515,152.38,152.34,38.7452515]
[1748872665978,43.5,152.38,152.34,38.7452515]
[1748872666205,82.2452515,152.38,152.34,38.7452515]
[1748872666518,38.7452515,152.38,152.34,38.7452515]
[1748872666698,82.2452515,152.38,152.33,38.7452515]
[1748872666898,82.2452515,152.38,152.33,61.72168423]
[1748872667303,43.5,152.38,152.34,38.7452515]
[1748872667719,43.5,152.38,152.33,61.72168423]
[1748872667720,82.2452515,152.38,152.33,61.72168423]
[1748872668600,38.7452515,152.35,152.32,6.56512605]
[1748872668992,82.2452515,152.35,152.32,6.56512605]
[1748872669900,38.7452515,152.34,152.32,6.56512605]
[1748872670106,43.5,152.35,152.32,6.56512605]
[1748872670301,38.7452515,152.34,152.32,6.56512605]
[1748872670903,43.5,152.35,152.32,6.56512605]
[1748872671394,43.5,152.35,152.32,45.31037755]
[1748872671599,43.5,152.35,152.32,6.56512605]
[1748872671896,82.2452515,152.35,152.33,12.38]
[1748872672222,38.7452515,152.34,152.33,12.38]
[1748872672517,38.7452515,152.34,152.31,101.08537843]
[1748872672749,38.7452515,152.33,152.32,12.38]
[1748872673215,38.7452515,152.33,152.32,18.94512605]
[1748872673719,38.7452515,152.33,152.32,12.38]
[1748872673885,43.5,152.35,152.32,12.38]
[1748872674105,38.7452515,152.33,152.32,12.38]
[1748872677854,45.31008052,152.33,152.31,94.52]
[1748872678135,45.31008052,152.33,152.3,12.4]
[1748872678136,88.5359515,152.32,152.3,12.4]
[1748872678437,38.7452515,152.31,152.26,12.4]
[1748872678623,38.7452515,152.27,152.26,12.4]
[1748872678822,82.2252515,152.27,152.26,12.4]
[1748872681831,88.7925333,152.27,152.21,94.52]
[1748872682012,38.7452515,152.22,152.21,12.38]
[1748872682218,43.48,152.22,152.21,12.38]
[1748872682735,38.7452515,152.26,152.21,51.1252515]
[1748872682926,43.48,152.25,152.22,38.7452515]
[1748872683123,38.7452515,152.26,152.21,51.1252515]
[1748872683309,82.2252515,152.26,152.22,6.56943896]
[1748872684107,43.48,152.26,152.22,6.56943896]
[1748872684330,38.7452515,152.24,152.22,6.56943896]
[1748872684640,38.7452515,152.23,152.21,12.38]
[1748872684809,82.2452515,152.23,152.21,18.94981188]
[1748872685015,43.5,152.23,152.21,18.94981188]
[1748872685453,6.56631287,152.3,152.21,57.69506338]
[1748872685617,38.7452515,152.27,152.22,38.7452515]
[1748872685813,38.7452515,152.26,152.21,74.11973981]
[1748872686317,82.2452515,152.26,152.21,74.11973981]
[1748872687114,38.7452515,152.25,152.21,74.11973981]
[1748872687310,1.5933,152.31,152.24,38.7452515]
[1748872687614,3.75126286,152.31,152.28,64.7452515]
[1748872687838,17.22011634,152.36,152.28,64.7452515]
[1748872687839,82.2452515,152.33,152.29,12.38]
[1748872688013,38.7452515,152.31,152.29,12.38]
[1748872688612,38.7452515,152.32,152.29,12.38]
[1748872689041,38.7452515,152.3,152.29,12.38]
[1748872689238,82.2452515,152.3,152.29,18.94641933]
[1748872689423,43.5,152.3,152.29,18.94641933]
[1748872689823,43.5,152.3,152.29,12.38]
[1748872690144,43.5,152.3,152.27,12.38]
[1748872690743,38.7452515,152.28,152.27,12.38]
[1748872692859,45.31210203,152.28,152.27,12.38]
[1748872693337,84.05735353,152.28,152.27,12.38]
[1748872693657,92.00525353,152.28,152.27,12.38]
[1748872693845,1.5911,152.28,152.27,12.38]
[1748872694030,40.3363515,152.28,152.27,12.38]
[1748872694431,38.7452515,152.28,152.27,12.38]
[1748872694636,82.2252515,152.28,152.27,12.38]
[1748872696642,82.2252515,152.28,152.19,6.57073395]
[1748872696643,127.53735353,152.28,152.19,6.57073395]
[1748872696841,5.34197582,152.27,152.2,12.38]
[1748872697033,38.7452515,152.21,152.2,12.38]
[1748872697250,82.2252515,152.21,152.2,12.38]
[1748872698335,43.48,152.21,152.2,12.38]
[1748872698662,82.2252515,152.21,152.2,12.38]
[1748872700156,43.48,152.22,152.2,18.95030223]
[1748872700361,43.48,152.23,152.2,35.37605781]
[1748872700735,82.2252515,152.23,152.2,35.37605781]
[1748872701137,43.48,152.22,152.2,74.12130931]
[1748872701465,43.48,152.22,152.2,35.37605781]
[1748872704082,1.5919,152.27,152.2,35.37605781]
[1748872704484,82.2252515,152.26,152.21,38.7452515]
[1748872704688,38.7452515,152.25,152.2,74.12130931]
[1748872704867,38.7452515,152.23,152.2,35.37605781]
[1748872705071,43.48,152.23,152.2,74.12130931]
[1748872705479,6.56626551,152.3,152.21,38.7452515]
[1748872705794,38.7452515,152.26,152.21,38.7452515]
[1748872705982,43.48,152.25,152.21,38.7452515]
[1748872706290,38.7452515,152.24,152.2,35.37605781]
[1748872706987,38.7452515,152.22,152.2,18.95030223]
[1748872707185,43.48,152.22,152.2,18.95030223]
[1748872707767,43.48,152.22,152.2,57.69555373]
[1748872708084,43.48,152.23,152.21,38.7452515]
[1748872708284,43.48,152.23,152.22,38.7452515]
[1748872708492,5.33014322,152.31,152.23,26.0]
[1748872708670,38.7452515,152.27,152.23,26.0]
[1748872708986,38.7452515,152.27,152.25,26.0]
[1748872709288,38.7452515,152.27,152.26,12.38]
[1748872712172,45.3125333,152.27,152.18,22.99900863]
[1748872712370,38.7452515,152.2,152.19,12.36]
[1748872712577,38.7452515,152.21,152.19,12.36]
[1748872712915,43.48,152.22,152.19,51.1052515]
[1748872713081,6.5672818,152.27,152.19,51.1052515]
[1748872713082,43.48,152.23,152.19,51.1052515]
[1748872713389,82.2252515,152.23,152.19,51.1052515]
[1748872713972,82.2252515,152.23,152.19,12.36]
[1748872714189,82.2252515,152.23,152.2,6.57030223]
[1748872714492,38.7452515,152.22,152.2,6.57030223]
[1748872714679,82.2252515,152.23,152.2,6.57030223]
[1748872714876,38.7452515,152.22,152.2,6.57030223]
[1748872715192,82.2252515,152.23,152.2,6.57030223]
[1748872715388,38.7452515,152.24,152.2,61.74130931]
[1748872715695,82.2252515,152.24,152.2,61.74130931]
[1748872715877,43.48,152.24,152.2,61.74130931]
[1748872716667,38.7452515,152.27,152.23,38.7452515]
[1748872716869,38.7452515,152.27,152.22,38.7452515]
[1748872717181,82.2252515,152.27,152.22,38.7452515]
[1748872717562,6.3568,152.32,152.25,38.7452515]
[1748872717767,38.7452515,152.31,152.26,51.1052515]
[1748872717982,38.7452515,152.29,152.26,12.36]
[1748872718197,38.7452515,152.3,152.26,12.36]
[1748872718379,38.7452515,152.3,152.27,6.5672818]
[1748872718566,38.7452515,152.29,152.27,6.5672818]
[1748872719191,38.7452515,152.28,152.26,18.9276806]
[1748872719491,38.7452515,152.27,152.26,18.9276806]
[1748872719697,38.7452515,152.28,152.26,18.9276806]
[1748872720195,38.7452515,152.27,152.26,12.36]
[1748872720770,38.7452515,152.27,152.26,18.92771312]
[1748872720990,43.48,152.29,152.26,18.92771312]
[1748872721190,38.7452515,152.27,152.26,18.92771312]
[1748872721889,38.7452515,152.28,152.26,18.92771312]
[1748872722969,38.7452515,152.28,152.26,12.36]
[1748872723587,43.46,152.28,152.26,18.92770534]
[1748872724382,43.46,152.3,152.27,38.7452515]
[1748872724799,43.46,152.31,152.28,45.31210203]
[1748872724997,38.7452515,152.33,152.29,38.7452515]
[1748872725295,6.31297159,152.35,152.28,22.98397687]
[1748872725296,40.3511515,152.35,152.3,38.7452515]
[1748872725473,43.46,152.34,152.3,38.7452515]
[1748872726101,38.7452515,152.35,152.31,38.7452515]
[1748872726408,43.46,152.34,152.32,12.36]
[1748872726587,38.7452515,152.35,152.32,12.36]
[1748872726788,38.7452515,152.36,152.33,6.56469506]
[1748872726995,43.46,152.35,152.33,6.56469506]
[1748872727305,38.7452515,152.34,152.32,12.36]
[1748872727783,38.7452515,152.34,152.32,18.92506307]
[1748872727985,38.7452515,152.34,152.32,12.36]
[1748872728306,38.7452515,152.33,152.32,12.36]
[1748872728694,38.7452515,152.34,152.32,12.36]
[1748872729005,38.7452515,152.33,152.32,12.36]
[1748872729589,38.7452515,152.33,152.23,22.63914751]
[1748872729590,7.8942,152.32,152.27,12.36]
[1748872729788,38.7452515,152.29,152.27,12.36]
[1748872730011,38.7452515,152.3,152.27,12.36]
[1748872730376,43.44,152.31,152.27,12.36]
[1748872730377,38.7452515,152.28,152.27,12.36]
[1748872730787,82.1852515,152.28,152.27,12.36]
[1748872731805,43.44,152.28,152.27,12.36]
[1748872732403,43.44,152.28,152.27,18.9272818]
[1748872732706,38.7452515,152.3,152.27,18.9272818]
[1748872732903,38.7452515,152.31,152.27,18.9272818]
[1748872733304,82.1852515,152.32,152.27,57.6725333]
[1748872734107,38.7452515,152.32,152.27,74.0907378]
[1748872734311,38.7452515,152.31,152.27,35.3454863]
[1748872734510,82.1852515,152.32,152.27,74.0907378]
[1748872734811,38.7452515,152.31,152.27,35.3454863]
[1748872735198,38.7452515,152.31,152.27,18.9272818]
[1748872735510,38.7452515,152.3,152.27,18.9272818]
[1748872736006,38.7452515,152.31,152.27,18.9272818]
[1748872738102,38.7452515,152.3,152.27,18.9272818]
[1748872738311,50.00516321,152.32,152.27,12.36]
[1748872738312,38.7452515,152.29,152.27,12.36]
[1748872738617,38.7452515,152.28,152.27,12.36]
[1748872739488,43.42,152.29,152.27,18.92714705]
[1748872740008,43.42,152.29,152.27,57.67239855]
[1748872740181,43.42,152.29,152.28,38.7452515]
[1748872740603,43.42,152.29,152.28,45.31210203]
[1748872740808,43.42,152.32,152.28,6.56685053]
[1748872741104,38.7452515,152.31,152.28,6.56685053]
[1748872741312,82.1652515,152.32,152.28,45.31210203]
[1748872742413,82.1652515,152.32,152.28,6.56685053]
[1748872743016,38.7452515,152.31,152.27,57.67234269]
[1748872743212,38.7452515,152.31,152.27,18.92709119]
[1748872743526,38.7452515,152.31,152.27,57.67234269]
[1748872743824,38.7452515,152.31,152.27,12.36]
[1748872744015,38.7452515,152.3,152.27,12.36]
[1748872744208,38.7452515,152.3,152.27,18.92707934]
[1748872744411,38.7452515,152.3,152.27,18.92719653]
[1748872744619,43.42,152.32,152.27,12.36]
[1748872744813,38.7452515,152.28,152.27,12.36]
[1748872745329,82.1652515,152.28,152.19,22.85269638]
[1748872745516,38.7452515,152.25,152.21,38.7452515]
[1748872745701,49.8704,152.28,152.21,26.0]
[1748872745906,43.4,152.3,152.27,38.7452515]
[1748872746105,38.7452515,152.3,152.28,12.34]
[1748872746312,82.1452515,152.3,152.28,12.34]
[1748872748407,38.7452515,152.31,152.28,18.90682293]
[1748872748626,43.4,152.3,152.28,18.90682293]
[1748872748899,82.1452515,152.3,152.28,12.34]
[1748872749211,38.7452515,152.29,152.28,12.34]
[1748872749403,85.697503,152.29,152.23,12.34]
[1748872749607,38.7452515,152.24,152.23,12.34]
[1748872749819,82.1452515,152.24,152.23,12.34]
[1748872750628,82.1452515,152.24,152.18,12.34]
[1748872750925,38.7452515,152.2,152.18,18.91111642]
[1748872751125,43.4,152.19,152.18,12.34]
[1748872751530,43.4,152.19,152.18,18.91116572]
[1748872751709,24.62304999,152.29,152.18,57.65641722]
[1748872751916,38.7452515,152.24,152.2,38.7452515]
[1748872752116,43.4,152.23,152.19,38.7452515]
[1748872752515,38.7452515,152.24,152.19,38.7452515]
[1748872752721,43.4,152.23,152.21,38.7452515]
[1748872753017,43.4,152.23,152.22,6.56943896]
[1748872754842,38.7452515,152.25,152.22,6.56943896]
[1748872755129,82.1452515,152.24,152.21,6.56987057]
[1748872755323,38.7452515,152.22,152.19,6.57039781]
[1748872755503,43.4,152.21,152.19,6.57039781]
[1748872755829,82.1452515,152.21,152.19,6.57039781]
[1748872756014,38.7452515,152.2,152.19,6.57039781]
[1748872756215,38.7452515,152.2,152.18,18.91105915]
[1748872756415,38.7452515,152.19,152.18,18.91105915]
[1748872756710,38.7452515,152.2,152.18,18.91105915]
[1748872758232,43.4,152.21,152.19,38.7452515]
[1748872758430,38.7452515,152.23,152.18,57.65631065]
[1748872758728,43.4,152.22,152.18,57.65631065]
[1748872759537,82.1452515,152.22,152.18,74.08422496]
[1748872759913,82.1452515,152.22,152.18,35.33897346]
[1748872760108,82.1452515,152.22,152.18,74.08422496]
[1748872760934,43.4,152.22,152.18,74.08422496]
[1748872761238,43.4,152.21,152.2,38.7452515]
[1748872761529,38.7452515,152.24,152.2,6.57030223]
[1748872761710,43.4,152.22,152.2,6.57030223]
[1748872762634,38.7452515,152.21,152.2,6.57030223]
[1748872762944,38.7452515,152.21,152.19,6.57058225]
[1748872763139,38.7452515,152.2,152.19,6.57058225]
[1748872763433,38.7452515,152.2,152.18,18.91112864]
[1748872763638,82.1452515,152.19,152.18,18.91112864]
[1748872763836,82.1452515,152.19,152.18,12.34]
[1748872764136,82.1452515,152.19,152.18,18.91116572]
[1748872765732,43.4,152.19,152.18,18.91116572]
[1748872766937,82.1452515,152.19,152.18,12.34]
[1748872767143,82.1452515,152.19,152.18,18.91116572]
[1748872767331,82.1452515,152.19,152.18,12.34]
[1748872767524,82.1452515,152.19,152.18,18.91116572]
[1748872767726,82.1452515,152.19,152.18,12.34]
[1748872769135,82.1452515,152.19,152.15,12.34]
[1748872769330,38.7452515,152.17,152.15,18.91231993]
[1748872769535,43.38,152.16,152.15,18.91231993]
[1748872770249,43.38,152.16,152.15,57.65757143]
[1748872770751,38.7452515,152.18,152.15,18.91231993]
[1748872771050,43.38,152.17,152.15,18.91231993]
[1748872771339,69.28961991,152.17,152.15,18.91231993]
[1748872771542,43.38,152.17,152.15,18.91231993]
[1748872772420,25.90961991,152.16,152.15,18.91231993]
[1748872773439,69.28961991,152.17,152.15,18.91231993]
[1748872774665,69.28961991,152.17,152.15,12.34]
[1748872774957,43.38,152.17,152.15,18.91246138]
[1748872775248,6.1231,152.21,152.16,25.90961991]
[1748872775424,43.38,152.2,152.18,25.90961991]
[1748872775746,43.38,152.19,152.17,25.90961991]
[1748872776335,43.38,152.19,152.18,12.3]
[1748872776929,25.90961991,152.2,152.19,6.57073395]
[1748872777248,25.90961991,152.2,152.18,12.3]
[1748872777249,69.26961991,152.2,152.18,18.87114308]
[1748872777440,25.90961991,152.19,152.18,18.87114308]
[1748872778262,25.90961991,152.19,152.18,12.3]
[1748872778967,43.36,152.2,152.18,12.3]
[1748872779257,69.26961991,152.2,152.18,12.3]
[1748872780151,43.36,152.19,152.18,12.3]
[1748872781261,69.26961991,152.19,152.18,12.3]
[1748872781558,43.36,152.19,152.18,12.3]
[1748872781733,69.26961991,152.19,152.18,12.3]
[1748872784151,43.36,152.19,152.18,12.3]
[1748872784363,69.26961991,152.19,152.18,12.3]
[1748872785461,82.21078038,152.19,152.18,12.3]
[1748872790659,82.21078038,152.19,152.14,12.3]
[1748872790856,8.2711,152.26,152.18,38.87078038]
[1748872791063,38.87078038,152.23,152.18,38.87078038]
[1748872791259,82.21078038,152.22,152.18,38.87078038]
[1748872791462,38.87078038,152.21,152.17,38.87078038]
[1748872791640,82.21078038,152.22,152.17,38.87078038]
[1748872792341,38.87078038,152.23,152.19,38.87078038]
[1748872792570,43.34,152.22,152.19,38.87078038]
[1748872792841,43.34,152.22,152.18,38.87078038]
[1748872792842,82.21078038,152.22,152.18,38.87078038]
[1748872793082,38.87078038,152.22,152.18,38.87078038]
[1748872793248,82.19078038,152.21,152.17,64.87078038]
[1748872793451,82.19078038,152.21,152.17,26.0]
[1748872794880,43.32,152.2,152.19,38.87078038]
[1748872795055,8.2711,152.26,152.19,38.87078038]
[1748872795248,82.19078038,152.25,152.21,38.87078038]
[1748872795668,27.88294541,152.3,152.22,38.87078038]
[1748872795669,38.87078038,152.27,152.22,38.87078038]
[1748872795977,38.87078038,152.25,152.2,12.3]
[1748872796158,82.19078038,152.24,152.22,26.0]
[1748872796349,43.32,152.23,152.22,26.0]
[1748872796877,82.19078038,152.23,152.2,12.3]
[1748872797042,8.20750273,152.29,152.22,38.87078038]
[1748872797244,38.87078038,152.23,152.2,12.3]
[1748872797448,82.11170545,152.22,152.2,12.3]
[1748872797643,43.24092507,152.22,152.21,38.87078038]
[1748872797844,43.24092507,152.22,152.2,12.3]
[1748872797845,43.24092507,152.22,152.2,51.17078038]
[1748872798077,43.3,152.27,152.21,38.87078038]
[1748872798260,21.31466721,152.3,152.25,38.87078038]
[1748872798440,82.17078038,152.29,152.24,38.87078038]
[1748872798647,38.87078038,152.29,152.25,38.87078038]
[1748872798855,43.3,152.28,152.25,38.87078038]
[1748872799377,19.77386721,152.3,152.27,38.87078038]
[1748872799556,43.3,152.29,152.25,38.87078038]
[1748872799761,38.87078038,152.3,152.26,51.17078038]
[1748872800063,82.17078038,152.28,152.26,12.3]
[1748872800377,26.0,152.21,151.99,19.71]
[1748872800670,50.0,152.12,152.01,94.78735266]
[1748872801171,21.80345151,152.2,152.02,28.87808183]
[1748872801363,25.83047405,152.19,152.06,6.57606855]
[1748872801553,25.83047405,152.19,152.14,26.0]
[1748872801767,25.83047405,152.19,152.12,26.0]
[1748872801962,25.83047405,152.19,152.14,26.0]
[1748872802160,38.87078038,152.18,152.11,12.82]
[1748872802470,44.42,152.18,152.11,12.82]
[1748872802865,38.87078038,152.15,152.11,12.82]
[1748872803060,38.87078038,152.16,152.11,12.82]
[1748872803263,44.42,152.18,152.11,12.82]
[1748872803672,38.87078038,152.17,152.11,12.82]
[1748872804183,44.42,152.18,152.12,38.87078038]
[1748872804373,44.42,152.18,152.1,26.0]
[1748872804374,38.87078038,152.13,152.06,12.82]
[1748872804575,44.52,152.12,152.06,12.82]
[1748872804749,38.87078038,152.1,152.06,12.82]
[1748872804954,38.87078038,152.08,152.06,38.82]
[1748872805157,38.87078038,152.1,152.06,12.82]
[1748872805354,38.87078038,152.08,152.06,12.82]
[1748872805553,64.87078038,152.19,152.07,38.87078038]
[1748872805755,38.87078038,152.13,152.07,64.87078038]
[1748872805972,38.87078038,152.1,152.07,26.0]
[1748872806170,38.87078038,152.13,152.07,38.87078038]
[1748872806492,38.87078038,152.09,152.07,26.0]
[1748872806653,83.57078038,152.1,152.07,26.0]
[1748872807049,76.0,152.19,152.07,26.0]
[1748872807271,38.87078038,152.12,152.07,26.0]
[1748872807490,50.0,152.22,152.1,38.87078038]
[1748872807658,38.87078038,152.15,152.1,38.87078038]
[1748872807860,38.87078038,152.14,152.08,45.44626696]
[1748872808056,44.72,152.15,152.11,38.87078038]
[1748872808257,44.72,152.15,152.12,12.82]
[1748872808564,38.87078038,152.13,152.12,12.82]
[1748872808760,38.87078038,152.14,152.12,12.82]
[1748872808965,44.72,152.15,152.12,12.82]
[1748872809171,38.87078038,152.13,152.12,12.82]
[1748872809376,83.73078038,152.13,152.12,12.82]
[1748872809679,44.86,152.13,152.12,12.82]
[1748872809866,83.73078038,152.13,152.12,12.82]
[1748872810251,83.73078038,152.13,152.05,6.57674544]
[1748872810578,38.87078038,152.07,152.06,12.82]
[1748872810783,44.9,152.08,152.06,12.82]
[1748872811955,38.87078038,152.07,152.06,12.82]
[1748872812156,38.87078038,152.07,152.01,107.4]
[1748872812353,63.54964886,152.08,152.0,0.69154845]
[1748872812559,44.88,152.07,152.04,38.87078038]
[1748872812782,62.82,152.16,152.07,26.0]
[1748872812783,6.0818,152.16,152.07,26.0]
[1748872812983,6.0818,152.16,152.1,38.87078038]
[1748872813280,38.87078038,152.13,152.09,12.82]
[1748872813479,38.87078038,152.11,152.09,12.82]
[1748872813783,45.0,152.14,152.1,38.87078038]
[1748872813985,38.87078038,152.14,152.09,38.82]
[1748872814163,45.0,152.13,152.09,38.82]
[1748872814364,45.0,152.13,152.09,77.69078038]
[1748872814565,44.98,152.12,152.09,12.82]
[1748872815470,44.98,152.12,152.1,6.57462195]